[Event "Titled Tuesday Blitz June 27 Late 2023"]
[White "Nakamura, Hikaru"]
[Black "Dardha, Daniel"]
[WhiteFideId "2016192"]
[BlackFideId "240990"]
[WhiteElo "3214"]
[BlackElo "2903"]
[Result "1-0"]
[Round "4"]
[TimeControl "180+2"]
[Date "2023.06.27"]
[WhiteClock "0:00:19"]
[BlackClock "0:00:00"]
[Board "2"]

1. Nf3 {[%clk 0:03:00]}  d5 {[%clk 0:02:59]} 2. e3 {[%clk 0:03:00]}  c6 {[%clk 0:02:58]} 3. c4 {[%clk 0:03:00]}  Nf6 {[%clk 0:02:57]} 4. Nc3 {[%clk 0:03:00]}  e6 {[%clk 0:02:57]} 5. b3 {[%clk 0:03:00]}  Bd6 {[%clk 0:02:57]} 6. Bb2 {[%clk 0:03:00]}  O-O {[%clk 0:02:57]} 7. d4 {[%clk 0:03:01]}  Nbd7 {[%clk 0:02:57]} 8. Bd3 {[%clk 0:03:01]}  Qe7 {[%clk 0:02:53]} 9. O-O {[%clk 0:02:59]}  b6 {[%clk 0:02:45]} 10. e4 {[%clk 0:02:59]}  dxe4 {[%clk 0:02:44]} 11. Nxe4 {[%clk 0:03:00]}  Nxe4 {[%clk 0:02:41]} 12. Bxe4 {[%clk 0:03:01]}  Bb7 {[%clk 0:02:40]} 13. Re1 {[%clk 0:03:00]}  Nf6 {[%clk 0:02:38]} 14. Bc2 {[%clk 0:02:59]}  Qc7 {[%clk 0:02:36]} 15. Qd3 {[%clk 0:02:49]}  Rfe8 {[%clk 0:02:12]} 16. Ng5 {[%clk 0:02:38]}  g6 {[%clk 0:01:56]} 17. Qh3 {[%clk 0:02:35]}  Bf4 {[%clk 0:01:45]} 18. Qh4 {[%clk 0:02:28]}  Nh5 {[%clk 0:00:59]} 19. Ne4 {[%clk 0:02:11]}  Qe7 {[%clk 0:00:43]} 20. Qxe7 {[%clk 0:02:03]}  Rxe7 {[%clk 0:00:44]} 21. g4 {[%clk 0:02:01]}  Ng7 {[%clk 0:00:40]} 22. d5 {[%clk 0:01:57]}  e5 {[%clk 0:00:33]} 23. Nf6+ {[%clk 0:01:48]}  Kh8 {[%clk 0:00:31]} 24. Rad1 {[%clk 0:01:48]}  cxd5 {[%clk 0:00:30]} 25. cxd5 {[%clk 0:01:36]}  Ne8 {[%clk 0:00:29]} 26. Ne4 {[%clk 0:00:45]}  Rd7 {[%clk 0:00:29]} 27. Ng3 {[%clk 0:00:41]}  Bxd5 {[%clk 0:00:23]} 28. Ne2 {[%clk 0:00:34]}  Bh6 {[%clk 0:00:17]} 29. Bxe5+ {[%clk 0:00:34]}  Bg7 {[%clk 0:00:16]} 30. Nf4 {[%clk 0:00:33]}  Bc6 {[%clk 0:00:13]} 31. Rc1 {[%clk 0:00:27]}  Bf3 {[%clk 0:00:11]} 32. h3 {[%clk 0:00:25]}  Rad8 {[%clk 0:00:11]} 33. Kh2 {[%clk 0:00:21]}  Bxe5 {[%clk 0:00:10]} 34. Rxe5 {[%clk 0:00:21]}  Kg7 {[%clk 0:00:11]} 35. Kg3 {[%clk 0:00:22]}  Bb7 {[%clk 0:00:11]} 36. b4 {[%clk 0:00:19]}  Nf6 {[%clk 0:00:10]} 37. Rce1 {[%clk 0:00:19]}  Rd2 {[%clk 0:00:08]} 38. Bb3 {[%clk 0:00:19]}  R8d7 {[%clk 0:00:04]} 39. g5 {[%clk 0:00:18]}  Nh5+ {[%clk 0:00:04]} 40. Nxh5+ {[%clk 0:00:18]}  gxh5 {[%clk 0:00:05]} 41. R1e3 {[%clk 0:00:17]}  h4+ {[%clk 0:00:05]} 42. Kxh4 {[%clk 0:00:16]}  Rxf2 {[%clk 0:00:05]} 43. Re7 {[%clk 0:00:16]}  Rxe7 {[%clk 0:00:03]} 44. Rxe7 {[%clk 0:00:17]}  Bc6 {[%clk 0:00:02]} 45. Rxa7 {[%clk 0:00:16]}  Rf4+ {[%clk 0:00:02]} 46. Kg3 {[%clk 0:00:16]}  Rf3+ {[%clk 0:00:03]} 47. Kg4 {[%clk 0:00:17]}  Rf1 {[%clk 0:00:02]} 48. h4 {[%clk 0:00:16]}  Bf3+ {[%clk 0:00:03]} 49. Kg3 {[%clk 0:00:17]}  Bh5 {[%clk 0:00:04]} 50. Rb7 {[%clk 0:00:17]}  Rf3+ {[%clk 0:00:03]} 51. Kg2 {[%clk 0:00:18]}  Rf4 {[%clk 0:00:03]} 52. Rxb6 {[%clk 0:00:18]}  Rxh4 {[%clk 0:00:00]} 53. a4 {[%clk 0:00:19]} 1-0


[Site "https://www.chess.com"]

[Event "Titled Tuesday Blitz June 27 Late 2023"]
[White "Andreikin, Dmitry"]
[Black "Erdogmus, Yagiz Kaan"]
[WhiteFideId "4158814"]
[BlackFideId "44599790"]
[WhiteElo "3027"]
[BlackElo "2872"]
[Result "1-0"]
[Round "4"]
[TimeControl "180+2"]
[Date "2023.06.27"]
[WhiteClock "0:00:17"]
[BlackClock "0:00:07"]
[Board "7"]

1. e4 {[%clk 0:02:21]}  c5 {[%clk 0:02:59]} 2. Nc3 {[%clk 0:02:20]}  e6 {[%clk 0:02:58]} 3. Nge2 {[%clk 0:02:20]}  Nc6 {[%clk 0:02:58]} 4. d4 {[%clk 0:02:20]}  cxd4 {[%clk 0:02:57]} 5. Nxd4 {[%clk 0:02:21]}  Nf6 {[%clk 0:02:57]} 6. Ndb5 {[%clk 0:02:19]}  Bb4 {[%clk 0:02:52]} 7. a3 {[%clk 0:02:19]}  Bxc3+ {[%clk 0:02:52]} 8. Nxc3 {[%clk 0:02:20]}  d5 {[%clk 0:02:53]} 9. Bd3 {[%clk 0:02:19]}  dxe4 {[%clk 0:02:52]} 10. Nxe4 {[%clk 0:02:19]}  Nxe4 {[%clk 0:02:52]} 11. Bxe4 {[%clk 0:02:20]}  Qxd1+ {[%clk 0:02:51]} 12. Kxd1 {[%clk 0:02:21]}  Bd7 {[%clk 0:02:49]} 13. Bd2 {[%clk 0:02:18]}  O-O-O {[%clk 0:02:48]} 14. Kc1 {[%clk 0:02:18]}  Ne7 {[%clk 0:02:47]} 15. Bb4 {[%clk 0:02:15]}  Rhe8 {[%clk 0:02:10]} 16. Rd1 {[%clk 0:02:13]}  Bc6 {[%clk 0:02:07]} 17. Rxd8+ {[%clk 0:02:12]}  Kxd8 {[%clk 0:02:07]} 18. Bxe7+ {[%clk 0:02:09]}  Kxe7 {[%clk 0:02:08]} 19. Bxc6 {[%clk 0:02:09]}  bxc6 {[%clk 0:02:09]} 20. Kd2 {[%clk 0:02:08]}  Rd8+ {[%clk 0:02:09]} 21. Kc3 {[%clk 0:02:08]}  c5 {[%clk 0:02:07]} 22. b4 {[%clk 0:02:06]}  Rd5 {[%clk 0:02:06]} 23. b5 {[%clk 0:02:03]}  Kd6 {[%clk 0:02:06]} 24. a4 {[%clk 0:02:03]}  Rd4 {[%clk 0:01:51]} 25. Kb3 {[%clk 0:01:46]}  Rd2 {[%clk 0:01:35]} 26. a5 {[%clk 0:01:46]}  Kc7 {[%clk 0:01:35]} 27. c3 {[%clk 0:01:34]}  Rxf2 {[%clk 0:01:34]} 28. Kc4 {[%clk 0:01:35]}  Rxg2 {[%clk 0:01:10]} 29. Kxc5 {[%clk 0:01:35]}  Rg5+ {[%clk 0:01:10]} 30. Kb4 {[%clk 0:01:35]}  f5 {[%clk 0:01:04]} 31. Re1 {[%clk 0:01:25]}  f4 {[%clk 0:00:20]} 32. Rxe6 {[%clk 0:01:24]}  Rf5 {[%clk 0:00:18]} 33. Re7+ {[%clk 0:01:20]}  Kb8 {[%clk 0:00:18]} 34. Rxg7 {[%clk 0:00:53]}  f3 {[%clk 0:00:19]} 35. Rg1 {[%clk 0:00:52]}  f2 {[%clk 0:00:19]} 36. Rf1 {[%clk 0:00:52]}  Kc7 {[%clk 0:00:19]} 37. c4 {[%clk 0:00:50]}  Rf4 {[%clk 0:00:12]} 38. Kc5 {[%clk 0:00:46]}  Rf5+ {[%clk 0:00:07]} 39. Kd4 {[%clk 0:00:47]}  Kd6 {[%clk 0:00:07]} 40. Ke3 {[%clk 0:00:34]}  Kc5 {[%clk 0:00:05]} 41. Rxf2 {[%clk 0:00:33]}  Rh5 {[%clk 0:00:05]} 42. Rc2 {[%clk 0:00:26]}  Rh3+ {[%clk 0:00:04]} 43. Ke4 {[%clk 0:00:26]}  Rh4+ {[%clk 0:00:04]} 44. Ke5 {[%clk 0:00:27]}  Rh5+ {[%clk 0:00:03]} 45. Ke6 {[%clk 0:00:27]}  Rh6+ {[%clk 0:00:03]} 46. Kd7 {[%clk 0:00:28]}  Rg6 {[%clk 0:00:03]} 47. a6 {[%clk 0:00:21]}  Rg7+ {[%clk 0:00:03]} 48. Ke6 {[%clk 0:00:21]}  Rg6+ {[%clk 0:00:03]} 49. Kf7 {[%clk 0:00:22]}  Rh6 {[%clk 0:00:03]} 50. Kg7 {[%clk 0:00:21]}  Rh4 {[%clk 0:00:04]} 51. Kf6 {[%clk 0:00:14]}  Rh6+ {[%clk 0:00:03]} 52. Kg5 {[%clk 0:00:14]}  Rg6+ {[%clk 0:00:03]} 53. Kf5 {[%clk 0:00:13]}  Rh6 {[%clk 0:00:03]} 54. Kg4 {[%clk 0:00:13]}  Rg6+ {[%clk 0:00:03]} 55. Kh5 {[%clk 0:00:14]}  Rd6 {[%clk 0:00:03]} 56. h4 {[%clk 0:00:14]}  Re6 {[%clk 0:00:02]} 57. Kg5 {[%clk 0:00:14]}  Rg6+ {[%clk 0:00:02]} 58. Kf5 {[%clk 0:00:14]}  Rh6 {[%clk 0:00:03]} 59. Kg4 {[%clk 0:00:15]}  Rg6+ {[%clk 0:00:03]} 60. Kh3 {[%clk 0:00:15]}  h5 {[%clk 0:00:03]} 61. Rc1 {[%clk 0:00:15]}  Rg4 {[%clk 0:00:04]} 62. Rf1 {[%clk 0:00:13]}  Rxc4 {[%clk 0:00:02]} 63. Rf5+ {[%clk 0:00:14]}  Kb6 {[%clk 0:00:02]} 64. Rxh5 {[%clk 0:00:14]}  Rb4 {[%clk 0:00:02]} 65. Rf5 {[%clk 0:00:14]}  Rxb5 {[%clk 0:00:02]} 66. Rxb5+ {[%clk 0:00:14]}  Kxb5 {[%clk 0:00:03]} 67. h5 {[%clk 0:00:14]}  Kxa6 {[%clk 0:00:04]} 68. h6 {[%clk 0:00:15]}  Kb5 {[%clk 0:00:05]} 69. h7 {[%clk 0:00:16]}  a5 {[%clk 0:00:06]} 70. h8=Q {[%clk 0:00:17]}  a4 {[%clk 0:00:07]} 71. Qa1 {[%clk 0:00:17]} 1-0


[Site "https://www.chess.com"]

[Event "Titled Tuesday Blitz June 27 Late 2023"]
[White "Hakobyan, Aram"]
[Black "Holt, Conrad"]
[WhiteFideId "13306677"]
[BlackFideId "2034387"]
[WhiteElo "3027"]
[BlackElo "2871"]
[Result "1/2-1/2"]
[Round "4"]
[TimeControl "180+2"]
[Date "2023.06.27"]
[WhiteClock "0:00:07"]
[BlackClock "0:00:11"]
[Board "8"]

1. d4 {[%clk 0:03:00]}  d5 {[%clk 0:02:59]} 2. c4 {[%clk 0:03:01]}  c6 {[%clk 0:03:00]} 3. cxd5 {[%clk 0:03:02]}  cxd5 {[%clk 0:03:00]} 4. Bf4 {[%clk 0:03:02]}  Nc6 {[%clk 0:03:00]} 5. e3 {[%clk 0:03:03]}  Nf6 {[%clk 0:03:00]} 6. Bd3 {[%clk 0:03:04]}  Bg4 {[%clk 0:02:42]} 7. f3 {[%clk 0:03:04]}  Bd7 {[%clk 0:02:41]} 8. Nc3 {[%clk 0:03:04]}  e6 {[%clk 0:02:40]} 9. g4 {[%clk 0:03:03]}  Qb6 {[%clk 0:02:32]} 10. Qd2 {[%clk 0:02:58]}  Na5 {[%clk 0:02:24]} 11. Nge2 {[%clk 0:02:56]}  Nc4 {[%clk 0:02:18]} 12. Bxc4 {[%clk 0:02:56]}  dxc4 {[%clk 0:02:19]} 13. e4 {[%clk 0:02:56]}  Be7 {[%clk 0:02:14]} 14. h4 {[%clk 0:02:56]}  Rd8 {[%clk 0:02:00]} 15. h5 {[%clk 0:02:54]}  Bc6 {[%clk 0:01:57]} 16. h6 {[%clk 0:02:49]}  g6 {[%clk 0:01:56]} 17. Bg5 {[%clk 0:02:29]}  Qc7 {[%clk 0:01:35]} 18. a4 {[%clk 0:01:19]}  O-O {[%clk 0:01:27]} 19. O-O {[%clk 0:01:16]}  Rfe8 {[%clk 0:01:08]} 20. Qf4 {[%clk 0:01:10]}  Qxf4 {[%clk 0:01:06]} 21. Bxf4 {[%clk 0:01:10]}  Nd7 {[%clk 0:00:54]} 22. Kf2 {[%clk 0:01:06]}  e5 {[%clk 0:00:36]} 23. Be3 {[%clk 0:01:02]}  exd4 {[%clk 0:00:35]} 24. Nxd4 {[%clk 0:00:57]}  Ne5 {[%clk 0:00:34]} 25. Ke2 {[%clk 0:00:50]}  a6 {[%clk 0:00:28]} 26. Nxc6 {[%clk 0:00:39]}  bxc6 {[%clk 0:00:28]} 27. Rfd1 {[%clk 0:00:34]}  Rb8 {[%clk 0:00:20]} 28. Rd2 {[%clk 0:00:33]}  Nd3 {[%clk 0:00:20]} 29. Rb1 {[%clk 0:00:14]}  Bf6 {[%clk 0:00:18]} 30. Rc2 {[%clk 0:00:13]}  Rb4 {[%clk 0:00:18]} 31. g5 {[%clk 0:00:08]}  Be5 {[%clk 0:00:16]} 32. Nd1 {[%clk 0:00:08]}  Reb8 {[%clk 0:00:16]} 33. Bd2 {[%clk 0:00:09]}  Rxa4 {[%clk 0:00:16]} 34. Bc3 {[%clk 0:00:07]}  Bf4 {[%clk 0:00:15]} 35. Bf6 {[%clk 0:00:06]}  Rab4 {[%clk 0:00:13]} 36. Ne3 {[%clk 0:00:05]}  Bxe3 {[%clk 0:00:05]} 37. Kxe3 {[%clk 0:00:06]}  c5 {[%clk 0:00:06]} 38. Ra1 {[%clk 0:00:05]}  R8b6 {[%clk 0:00:05]} 39. Ra5 {[%clk 0:00:05]}  Kf8 {[%clk 0:00:05]} 40. e5 {[%clk 0:00:03]}  Ke8 {[%clk 0:00:05]} 41. Ke4 {[%clk 0:00:03]}  Kd7 {[%clk 0:00:05]} 42. Kd5 {[%clk 0:00:02]}  R4b5 {[%clk 0:00:06]} 43. Rxb5 {[%clk 0:00:01]}  axb5 {[%clk 0:00:07]} 44. Ke4 {[%clk 0:00:02]}  Ke6 {[%clk 0:00:07]} 45. Rd2 {[%clk 0:00:02]}  Ra6 {[%clk 0:00:07]} 46. b3 {[%clk 0:00:01]}  Ra3 {[%clk 0:00:07]} 47. bxc4 {[%clk 0:00:02]}  bxc4 {[%clk 0:00:08]} 48. Rc2 {[%clk 0:00:02]}  Ra4 {[%clk 0:00:08]} 49. Ke3 {[%clk 0:00:03]}  Kd5 {[%clk 0:00:09]} 50. f4 {[%clk 0:00:03]}  Ra3 {[%clk 0:00:09]} 51. Rd2 {[%clk 0:00:02]}  Rb3 {[%clk 0:00:09]} 52. Ke2 {[%clk 0:00:02]}  Ke4 {[%clk 0:00:09]} 53. Rc2 {[%clk 0:00:03]}  Nxf4+ {[%clk 0:00:09]} 54. Kf2 {[%clk 0:00:03]}  Kd5 {[%clk 0:00:10]} 55. Rd2+ {[%clk 0:00:04]}  Nd3+ {[%clk 0:00:10]} 56. Ke2 {[%clk 0:00:03]}  Rb6 {[%clk 0:00:10]} 57. Ra2 {[%clk 0:00:04]}  Re6 {[%clk 0:00:10]} 58. Kd2 {[%clk 0:00:03]}  Nxe5 {[%clk 0:00:10]} 59. Kc3 {[%clk 0:00:04]}  Ng4 {[%clk 0:00:10]} 60. Rd2+ {[%clk 0:00:04]}  Kc6 {[%clk 0:00:10]} 61. Bg7 {[%clk 0:00:03]}  Re4 {[%clk 0:00:10]} 62. Rd8 {[%clk 0:00:03]}  Ne3 {[%clk 0:00:10]} 63. Rh8 {[%clk 0:00:03]}  Nd5+ {[%clk 0:00:11]} 64. Kd2 {[%clk 0:00:04]}  Rg4 {[%clk 0:00:09]} 65. Rxh7 {[%clk 0:00:04]}  Rxg5 {[%clk 0:00:10]} 66. Rh8 {[%clk 0:00:05]}  Rg2+ {[%clk 0:00:10]} 67. Kc1 {[%clk 0:00:05]}  c3 {[%clk 0:00:11]} 68. Rc8+ {[%clk 0:00:04]}  Kb5 {[%clk 0:00:10]} 69. h7 {[%clk 0:00:05]}  Nb4 {[%clk 0:00:09]} 70. Bxc3 {[%clk 0:00:05]}  Na2+ {[%clk 0:00:09]} 71. Kd1 {[%clk 0:00:05]}  Nxc3+ {[%clk 0:00:10]} 72. Ke1 {[%clk 0:00:06]}  Rh2 {[%clk 0:00:11]} 73. h8=Q {[%clk 0:00:07]}  Rxh8 {[%clk 0:00:11]} 74. Rxh8 {[%clk 0:00:08]}  Kc6 {[%clk 0:00:10]} 75. Rf8 {[%clk 0:00:07]}  f5 {[%clk 0:00:11]} 76. Rf6+ {[%clk 0:00:08]}  Kd5 {[%clk 0:00:11]} 77. Rxg6 {[%clk 0:00:09]}  Ne4 {[%clk 0:00:11]} 78. Ke2 {[%clk 0:00:09]}  Kd4 {[%clk 0:00:11]} 79. Rg8 {[%clk 0:00:08]}  c4 {[%clk 0:00:12]} 80. Rd8+ {[%clk 0:00:09]}  Kc3 {[%clk 0:00:12]} 81. Ke3 {[%clk 0:00:10]}  Kb3 {[%clk 0:00:12]} 82. Rb8+ {[%clk 0:00:11]}  Kc2 {[%clk 0:00:12]} 83. Rf8 {[%clk 0:00:10]}  Ng3 {[%clk 0:00:12]} 84. Kf3 {[%clk 0:00:10]}  Nf1 {[%clk 0:00:11]} 85. Rxf5 {[%clk 0:00:10]}  c3 {[%clk 0:00:12]} 86. Rc5 {[%clk 0:00:09]}  Nd2+ {[%clk 0:00:12]} 87. Ke2 {[%clk 0:00:09]}  Nb3 {[%clk 0:00:13]} 88. Rc8 {[%clk 0:00:09]}  Nc1+ {[%clk 0:00:13]} 89. Ke3 {[%clk 0:00:09]}  Nb3 {[%clk 0:00:14]} 90. Rc7 {[%clk 0:00:10]}  Kb2 {[%clk 0:00:13]} 91. Kd3 {[%clk 0:00:10]}  Nc1+ {[%clk 0:00:13]} 92. Kc4 {[%clk 0:00:09]}  c2 {[%clk 0:00:12]} 93. Rb7+ {[%clk 0:00:10]}  Ka3 {[%clk 0:00:12]} 94. Kc3 {[%clk 0:00:09]}  Na2+ {[%clk 0:00:12]} 95. Kxc2 {[%clk 0:00:09]}  Nb4+ {[%clk 0:00:12]} 96. Kc3 {[%clk 0:00:10]}  Na2+ {[%clk 0:00:12]} 97. Kc4 {[%clk 0:00:11]}  Nc1 {[%clk 0:00:11]} 98. Rb1 {[%clk 0:00:11]}  Na2 {[%clk 0:00:11]} 99. Rb3+ {[%clk 0:00:12]}  Ka4 {[%clk 0:00:11]} 100. Rg3 {[%clk 0:00:13]}  Nc1 {[%clk 0:00:09]} 101. Rg1 {[%clk 0:00:13]}  Na2 {[%clk 0:00:10]} 102. Rh1 {[%clk 0:00:13]}  Ka3 {[%clk 0:00:10]} 103. Rh3+ {[%clk 0:00:13]}  Kb2 {[%clk 0:00:10]} 104. Rb3+ {[%clk 0:00:13]}  Kc2 {[%clk 0:00:10]} 105. Rb6 {[%clk 0:00:13]}  Nc1 {[%clk 0:00:11]} 106. Rh6 {[%clk 0:00:13]}  Kd2 {[%clk 0:00:11]} 107. Kd4 {[%clk 0:00:12]}  Ne2+ {[%clk 0:00:12]} 108. Ke4 {[%clk 0:00:13]}  Nc3+ {[%clk 0:00:12]} 109. Kf3 {[%clk 0:00:13]}  Kd3 {[%clk 0:00:13]} 110. Rd6+ {[%clk 0:00:14]}  Kc4 {[%clk 0:00:13]} 111. Rd8 {[%clk 0:00:13]}  Nd5 {[%clk 0:00:13]} 112. Ke4 {[%clk 0:00:14]}  Nc3+ {[%clk 0:00:14]} 113. Ke5 {[%clk 0:00:14]}  Kc5 {[%clk 0:00:13]} 114. Rc8+ {[%clk 0:00:15]}  Kb4 {[%clk 0:00:14]} 115. Kd4 {[%clk 0:00:15]}  Nb5+ {[%clk 0:00:15]} 116. Kd3 {[%clk 0:00:16]}  Ka5 {[%clk 0:00:12]} 117. Rb8 {[%clk 0:00:16]}  Ka6 {[%clk 0:00:12]} 118. Kc4 {[%clk 0:00:17]}  Na7 {[%clk 0:00:13]} 119. Kc5 {[%clk 0:00:17]}  Ka5 {[%clk 0:00:14]} 120. Rb6 {[%clk 0:00:17]}  Nc8 {[%clk 0:00:13]} 121. Rg6 {[%clk 0:00:12]}  Na7 {[%clk 0:00:12]} 122. Rh6 {[%clk 0:00:11]}  Nc8 {[%clk 0:00:12]} 123. Rh1 {[%clk 0:00:10]}  Ka6 {[%clk 0:00:12]} 124. Rh8 {[%clk 0:00:09]}  Na7 {[%clk 0:00:12]} 125. Rh7 {[%clk 0:00:10]}  Nc8 {[%clk 0:00:12]} 126. Rg7 {[%clk 0:00:08]}  Na7 {[%clk 0:00:12]} 127. Rc7 {[%clk 0:00:08]}  Nb5 {[%clk 0:00:12]} 128. Rc6+ {[%clk 0:00:08]}  Ka5 {[%clk 0:00:12]} 129. Rc8 {[%clk 0:00:08]}  Ka6 {[%clk 0:00:12]} 130. Rb8 {[%clk 0:00:07]}  Na7 {[%clk 0:00:10]} 131. Rb6+ {[%clk 0:00:06]}  Ka5 {[%clk 0:00:11]} 132. Rb2 {[%clk 0:00:06]}  Ka6 {[%clk 0:00:11]} 133. Rb3 {[%clk 0:00:06]}  Nc8 {[%clk 0:00:11]} 134. Rb8 {[%clk 0:00:06]}  Na7 {[%clk 0:00:11]} 135. Rb6+ {[%clk 0:00:05]}  Ka5 {[%clk 0:00:11]} 136. Rd6 {[%clk 0:00:06]}  Nc8 {[%clk 0:00:11]} 137. Rd8 {[%clk 0:00:06]}  Na7 {[%clk 0:00:11]} 138. Rg8 {[%clk 0:00:05]}  Ka6 {[%clk 0:00:12]} 139. Rg7 {[%clk 0:00:04]}  Nc8 {[%clk 0:00:12]} 140. Rg6+ {[%clk 0:00:05]}  Kb7 {[%clk 0:00:10]} 141. Rf6 {[%clk 0:00:06]}  Na7 {[%clk 0:00:11]} 142. Rb6+ {[%clk 0:00:05]}  Kc7 {[%clk 0:00:11]} 143. Rb3 {[%clk 0:00:06]}  Nc8 {[%clk 0:00:11]} 144. Rh3 {[%clk 0:00:06]}  Kb7 {[%clk 0:00:11]} 145. Rh7+ {[%clk 0:00:07]} 1/2-1/2


[Site "https://www.chess.com"]

[Event "Titled Tuesday Blitz June 27 Late 2023"]
[White "Elsa167"]
[Black "Terry, Renato"]
[BlackFideId "3803457"]
[WhiteElo "2867"]
[BlackElo "3009"]
[Result "0-1"]
[Round "4"]
[TimeControl "180+2"]
[Date "2023.06.27"]
[WhiteClock "0:00:00"]
[BlackClock "0:00:04"]
[Board "9"]

1. d4 {[%clk 0:03:00]}  e6 {[%clk 0:02:59]} 2. c4 {[%clk 0:03:00]}  Bb4+ {[%clk 0:02:59]} 3. Bd2 {[%clk 0:03:00]}  Bxd2+ {[%clk 0:02:53]} 4. Qxd2 {[%clk 0:03:01]}  Nf6 {[%clk 0:02:53]} 5. Nc3 {[%clk 0:03:01]}  d6 {[%clk 0:02:54]} 6. e4 {[%clk 0:02:56]}  e5 {[%clk 0:02:54]} 7. d5 {[%clk 0:02:53]}  a5 {[%clk 0:02:51]} 8. Nf3 {[%clk 0:02:41]}  Na6 {[%clk 0:02:51]} 9. Bd3 {[%clk 0:02:40]}  Bg4 {[%clk 0:02:50]} 10. Qe3 {[%clk 0:02:37]}  O-O {[%clk 0:02:36]} 11. Nd2 {[%clk 0:02:36]}  Nc5 {[%clk 0:02:35]} 12. h3 {[%clk 0:02:34]}  Bd7 {[%clk 0:02:35]} 13. Bc2 {[%clk 0:02:27]}  Nh5 {[%clk 0:02:35]} 14. g3 {[%clk 0:02:25]}  c6 {[%clk 0:02:07]} 15. Bd1 {[%clk 0:02:23]}  Nf6 {[%clk 0:02:06]} 16. g4 {[%clk 0:02:12]}  cxd5 {[%clk 0:02:03]} 17. cxd5 {[%clk 0:02:10]}  b5 {[%clk 0:02:03]} 18. Ne2 {[%clk 0:01:44]}  b4 {[%clk 0:01:59]} 19. Ng3 {[%clk 0:01:44]}  Rc8 {[%clk 0:01:50]} 20. Be2 {[%clk 0:01:41]}  Na4 {[%clk 0:01:41]} 21. Rb1 {[%clk 0:01:39]}  Qb6 {[%clk 0:01:33]} 22. Qxb6 {[%clk 0:01:35]}  Nxb6 {[%clk 0:01:34]} 23. Bd3 {[%clk 0:01:31]}  Rc7 {[%clk 0:01:18]} 24. Ke2 {[%clk 0:01:28]}  Rfc8 {[%clk 0:01:18]} 25. Rhd1 {[%clk 0:01:09]}  h6 {[%clk 0:01:14]} 26. Ngf1 {[%clk 0:01:09]}  Nh7 {[%clk 0:01:10]} 27. Ne3 {[%clk 0:00:58]}  Ng5 {[%clk 0:01:10]} 28. h4 {[%clk 0:00:54]}  Nh3 {[%clk 0:01:10]} 29. Kf3 {[%clk 0:00:52]}  Nf4 {[%clk 0:01:08]} 30. Bf1 {[%clk 0:00:53]}  Kf8 {[%clk 0:01:00]} 31. Kg3 {[%clk 0:00:41]}  g6 {[%clk 0:00:55]} 32. f3 {[%clk 0:00:32]}  Ke7 {[%clk 0:00:56]} 33. Ng2 {[%clk 0:00:31]}  Nxg2 {[%clk 0:00:44]} 34. Kxg2 {[%clk 0:00:32]}  f5 {[%clk 0:00:20]} 35. Kg3 {[%clk 0:00:26]}  fxg4 {[%clk 0:00:18]} 36. fxg4 {[%clk 0:00:27]}  Rf8 {[%clk 0:00:18]} 37. Rbc1 {[%clk 0:00:23]}  Rfc8 {[%clk 0:00:18]} 38. Rxc7 {[%clk 0:00:22]}  Rxc7 {[%clk 0:00:19]} 39. Bd3 {[%clk 0:00:22]}  Na4 {[%clk 0:00:13]} 40. Rb1 {[%clk 0:00:20]}  Nc5 {[%clk 0:00:13]} 41. Be2 {[%clk 0:00:18]}  Rc8 {[%clk 0:00:10]} 42. Kf2 {[%clk 0:00:18]}  Rf8+ {[%clk 0:00:10]} 43. Ke3 {[%clk 0:00:19]}  Rf4 {[%clk 0:00:10]} 44. Rg1 {[%clk 0:00:19]}  Bc8 {[%clk 0:00:06]} 45. b3 {[%clk 0:00:19]}  Bd7 {[%clk 0:00:07]} 46. Rg3 {[%clk 0:00:10]}  a4 {[%clk 0:00:06]} 47. Rg1 {[%clk 0:00:09]}  Be8 {[%clk 0:00:05]} 48. bxa4 {[%clk 0:00:06]}  Bxa4 {[%clk 0:00:03]} 49. Rb1 {[%clk 0:00:06]}  Bd7 {[%clk 0:00:03]} 50. Rxb4 {[%clk 0:00:07]}  Bxg4 {[%clk 0:00:04]} 51. Bxg4 {[%clk 0:00:07]}  Rxg4 {[%clk 0:00:05]} 52. a4 {[%clk 0:00:06]}  Rxh4 {[%clk 0:00:05]} 53. a5 {[%clk 0:00:06]}  Rh3+ {[%clk 0:00:06]} 54. Nf3 {[%clk 0:00:06]}  Rh1 {[%clk 0:00:06]} 55. Rb8 {[%clk 0:00:03]}  Ra1 {[%clk 0:00:06]} 56. Ra8 {[%clk 0:00:04]}  Ra3+ {[%clk 0:00:06]} 57. Ke2 {[%clk 0:00:04]}  Nxe4 {[%clk 0:00:07]} 58. Ra7+ {[%clk 0:00:05]}  Kf6 {[%clk 0:00:07]} 59. Ne1 {[%clk 0:00:04]}  Nc5 {[%clk 0:00:06]} 60. Nc2 {[%clk 0:00:02]}  Ra2 {[%clk 0:00:07]} 61. Kd1 {[%clk 0:00:03]}  h5 {[%clk 0:00:07]} 62. Nb4 {[%clk 0:00:03]}  Ra1+ {[%clk 0:00:07]} 63. Kc2 {[%clk 0:00:03]}  h4 {[%clk 0:00:07]} 64. Ra8 {[%clk 0:00:03]}  h3 {[%clk 0:00:07]} 65. Rh8 {[%clk 0:00:03]}  Rxa5 {[%clk 0:00:06]} 66. Rxh3 {[%clk 0:00:04]}  Ra4 {[%clk 0:00:06]} 67. Nc6 {[%clk 0:00:04]}  Rf4 {[%clk 0:00:05]} 68. Rh8 {[%clk 0:00:04]}  Rc4+ {[%clk 0:00:05]} 69. Kd2 {[%clk 0:00:03]}  g5 {[%clk 0:00:03]} 70. Rh6+ {[%clk 0:00:03]}  Kg7 {[%clk 0:00:03]} 71. Rh1 {[%clk 0:00:02]}  g4 {[%clk 0:00:03]} 72. Ke3 {[%clk 0:00:02]}  Re4+ {[%clk 0:00:03]} 73. Kf2 {[%clk 0:00:03]}  Rf4+ {[%clk 0:00:03]} 74. Kg3 {[%clk 0:00:03]}  Ne4+ {[%clk 0:00:04]} 75. Kg2 {[%clk 0:00:04]}  Rf2+ {[%clk 0:00:04]} 76. Kg1 {[%clk 0:00:05]}  Rd2 {[%clk 0:00:04]} 77. Rh4 {[%clk 0:00:05]}  Nf6 {[%clk 0:00:05]} 78. Ne7 {[%clk 0:00:05]}  Kf7 {[%clk 0:00:04]} 79. Nf5 {[%clk 0:00:04]}  Rxd5 {[%clk 0:00:04]} 80. Ne3 {[%clk 0:00:03]}  Rd4 {[%clk 0:00:04]} 81. Rh6 {[%clk 0:00:04]}  Rd3 {[%clk 0:00:03]} 82. Nf5 {[%clk 0:00:03]}  d5 {[%clk 0:00:04]} 83. Kf2 {[%clk 0:00:02]}  Ne4+ {[%clk 0:00:04]} 84. Ke2 {[%clk 0:00:02]}  Rf3 {[%clk 0:00:04]} 85. Nh4 {[%clk 0:00:00]}  Ng3+ {[%clk 0:00:04]} 0-1


[Site "https://www.chess.com"]